bitfinex/quotes_BTCUSD_20220731
["timestamp","ask_amount","ask_price","bid_price","bid_amount"]
[1659292985238,0.15,23664.0,23654.0,0.08454]
[1659292985495,0.15,23664.0,23652.0,0.35408053]
[1659292985707,0.05,23664.0,23653.0,0.301277]
[1659292985922,0.1,23664.0,23654.0,0.301277]
[1659292986149,0.05,23664.0,23653.0,0.301277]
[1659292986438,0.05,23664.0,23652.0,0.35408053]
[1659292986439,1.05,23664.0,23652.0,0.75408053]
[1659292986612,0.3,23663.0,23652.0,0.75408053]
[1659292986847,0.35,23663.0,23652.0,0.35408053]
[1659292987073,0.05,23657.0,23652.0,0.32180053]
[1659292987306,0.35,23653.0,23652.0,0.32180053]
[1659292987531,0.3,23658.0,23652.0,0.32180053]
[1659292987823,0.40725733,23657.0,23652.0,0.32180053]
[1659292988035,0.35,23656.0,23652.0,0.32180053]
[1659292988257,0.05,23655.0,23652.0,0.32180053]
[1659292988477,0.40725733,23656.0,23652.0,0.32180053]
[1659292988697,0.05,23653.0,23652.0,0.32180053]
[1659292988937,0.6,23653.0,23652.0,0.32180053]
[1659292989157,0.05,23653.0,23652.0,0.32180053]
[1659292989405,0.45,23655.0,23652.0,0.32180053]
[1659292989623,0.40725733,23654.0,23652.0,0.32180053]
[1659292989877,0.05,23658.0,23653.0,0.40725733]
[1659292990115,0.1310165,23668.0,23653.0,0.40725733]
[1659292990116,0.074,23662.0,23657.0,0.05]
[1659292990351,0.074,23662.0,23658.0,0.40725733]
[1659292990588,0.074,23662.0,23661.0,0.05]
[1659292990826,0.03225,23672.0,23661.0,0.45725733]
[1659292990827,0.05,23670.0,23661.0,0.45725733]
[1659292991058,0.714,23674.0,23662.0,0.40725733]
[1659292991269,0.45725733,23673.0,23663.0,0.03227]
[1659292991513,0.05,23673.0,23664.0,0.40725733]
[1659292991779,0.45725733,23673.0,23664.0,0.40725733]
[1659292992007,0.40725733,23672.0,23664.0,0.40725733]
[1659292993216,0.05,23673.0,23664.0,0.40725733]
[1659292993660,0.05,23673.0,23665.0,0.301277]
[1659292993880,0.05,23673.0,23666.0,0.40725733]
[1659292994782,0.05,23668.0,23662.0,0.40725733]
[1659292995009,0.05,23668.0,23661.0,0.05327102]
[1659292995010,0.40725733,23667.0,23661.0,0.05327102]
[1659292995231,0.3,23666.0,23661.0,0.00327102]
[1659292995487,0.80725733,23666.0,23661.0,0.00327102]
[1659292995931,0.40725733,23665.0,23661.0,0.00327102]
[1659292996147,0.05,23662.0,23661.0,0.00327102]
[1659292996372,0.03467316,23664.0,23661.0,0.00327102]
[1659292996628,0.05,23662.0,23661.0,0.00327102]
[1659292998257,0.45725733,23662.0,23661.0,0.00327102]
[1659292998484,0.75725733,23662.0,23661.0,0.00327102]
[1659292998932,0.45725733,23662.0,23661.0,0.00327102]
[1659293000091,0.05,23659.0,23652.0,0.32180053]
[1659293000324,0.05,23659.0,23653.0,0.40725733]
[1659293000606,0.1,23659.0,23653.0,0.40725733]
[1659293000833,0.15,23659.0,23653.0,0.40725733]
[1659293001049,0.05,23662.0,23653.0,0.40725733]
[1659293001273,0.05,23662.0,23654.0,0.301277]
[1659293001507,0.031701,23665.0,23655.0,0.70853433]
[1659293001726,0.03226,23664.0,23656.0,0.40725733]
[1659293001963,0.40725733,23663.0,23656.0,0.40725733]
[1659293002608,0.50725733,23663.0,23656.0,0.40725733]
[1659293003292,0.3,23662.0,23656.0,0.40725733]
[1659293003508,0.40725733,23663.0,23656.0,0.40725733]
[1659293003741,0.40725733,23662.0,23653.0,0.40725733]
[1659293003972,0.40725733,23662.0,23654.0,0.301277]
[1659293004186,0.40725733,23662.0,23655.0,0.40725733]
[1659293004423,0.40725733,23663.0,23656.0,0.301277]
[1659293004641,0.40725733,23663.0,23656.0,0.40725733]
[1659293005338,0.40725733,23666.0,23656.0,0.40725733]
[1659293005574,0.40725733,23668.0,23657.0,0.301277]
[1659293005796,0.40725733,23668.0,23658.0,0.70853433]
[1659293006027,0.43951733,23668.0,23659.0,0.40725733]
[1659293006251,0.031696,23669.0,23659.0,0.40725733]
[1659293006252,0.40725733,23667.0,23659.0,0.40725733]
[1659293006483,0.191942,23672.0,23660.0,0.301277]
[1659293006704,0.6131276,23665.0,23661.0,0.40725733]
[1659293007427,1.02038493,23665.0,23658.0,0.40725733]
[1659293007657,0.3,23664.0,23658.0,0.40725733]
[1659293007893,0.35,23664.0,23658.0,0.40725733]
[1659293008129,1.07038493,23665.0,23658.0,0.40725733]
[1659293008130,0.6631276,23665.0,23658.0,0.40725733]
[1659293008375,0.7131276,23665.0,23658.0,0.40725733]
[1659293008596,0.71260419,23665.0,23658.0,0.40725733]
[1659293010444,0.3,23664.0,23658.0,0.40725733]
[1659293010675,0.05,23660.0,23653.0,0.00059781]
[1659293010932,0.05,23660.0,23654.0,0.40725733]
[1659293011141,0.3,23662.0,23655.0,0.301277]
[1659293011363,0.05,23662.0,23656.0,0.40725733]
[1659293011604,0.40725733,23663.0,23656.0,0.40725733]
[1659293011814,0.50725733,23663.0,23656.0,0.40725733]
[1659293012316,0.3,23662.0,23656.0,0.40725733]
[1659293013034,0.50725733,23663.0,23656.0,0.40725733]
[1659293013246,0.40725733,23662.0,23654.0,0.40725733]
[1659293013483,0.6131276,23665.0,23655.0,0.74641535]
[1659293013724,0.6131276,23665.0,23657.0,0.00132976]
[1659293013944,0.6131276,23665.0,23658.0,0.70853433]
[1659293014167,0.6131276,23665.0,23659.0,0.70853433]
[1659293014408,0.6131276,23665.0,23660.0,0.70853433]
[1659293014682,0.6131276,23665.0,23661.0,0.70853433]
[1659293014910,0.6131276,23665.0,23662.0,0.40725733]
[1659293015606,0.6131276,23665.0,23662.0,0.40225733]
[1659293016074,0.4448276,23665.0,23664.0,0.445]
[1659293016302,0.03225,23676.0,23665.0,1.0]
[1659293016565,0.40725733,23676.0,23666.0,1.04371637]
[1659293016808,0.2936,23680.0,23667.0,0.74079433]
[1659293017047,0.40725733,23679.0,23668.0,1.04371637]
[1659293017286,0.40725733,23679.0,23669.0,0.70853433]
[1659293017521,0.40725733,23679.0,23670.0,0.70853433]
[1659293017760,0.05,23674.0,23664.0,0.05]
[1659293018014,0.40725733,23674.0,23665.0,0.40725733]
[1659293018240,0.40725733,23674.0,23657.0,0.39745204]
[1659293018241,0.05,23671.0,23657.0,0.39745204]
[1659293018501,0.43951733,23670.0,23658.0,0.40725733]
[1659293018737,0.05,23671.0,23662.0,0.40725733]
[1659293018958,0.13224,23679.0,23663.0,0.66872904]
[1659293019186,0.13224,23679.0,23664.0,0.301277]
[1659293019414,0.13224,23679.0,23665.0,0.301277]
[1659293019646,0.13224,23679.0,23664.0,0.33518204]
[1659293019887,0.13224,23679.0,23665.0,0.03226]
[1659293020111,0.13224,23679.0,23664.0,0.36744204]
[1659293020349,0.13224,23679.0,23664.0,0.33518204]
[1659293020575,0.13224,23679.0,23663.0,0.00132942]
[1659293020576,0.05,23673.0,23663.0,0.00132942]
[1659293020815,0.05,23671.0,23662.0,0.49176733]
[1659293021034,0.45725733,23671.0,23664.0,0.40725733]
[1659293021255,0.3,23670.0,23664.0,0.40725733]
[1659293022162,0.3,23670.0,23660.0,0.40725733]
[1659293022163,0.73895033,23670.0,23660.0,0.40725733]
[1659293022583,0.73951733,23669.0,23660.0,0.40725733]
[1659293022587,0.83951733,23669.0,23660.0,0.40725733]
[1659293022816,0.40725733,23668.0,23660.0,0.40725733]
[1659293023048,0.80725733,23669.0,23660.0,0.40725733]
[1659293023271,0.83895133,23669.0,23660.0,0.40725733]
[1659293023491,0.031696,23668.0,23660.0,0.40725733]
[1659293023723,0.063956,23668.0,23660.0,0.40725733]
[1659293024213,0.063956,23668.0,23660.0,0.49177733]
[1659293024435,0.83895033,23669.0,23661.0,0.45725733]
[1659293024653,0.43895333,23668.0,23661.0,0.45725733]
[1659293024911,0.35,23667.0,23661.0,0.45725733]
[1659293025124,0.4,23667.0,23661.0,0.45725733]
[1659293025338,0.4,23667.0,23662.0,0.70853433]
[1659293025587,0.03225,23671.0,23663.0,0.70853433]
[1659293025806,0.40725733,23673.0,23664.0,0.70853433]
[1659293026037,0.40725733,23673.0,23665.0,0.70853433]
[1659293026334,0.40725733,23673.0,23666.0,0.40725733]
[1659293026792,0.45725733,23676.0,23666.0,0.40725733]
[1659293027449,0.56267467,23668.0,23666.0,0.40725733]
[1659293027675,0.56267467,23668.0,23667.0,0.301277]
[1659293027898,0.56267467,23668.0,23667.0,0.40725733]
[1659293028380,0.56267467,23668.0,23667.0,0.40697611]
[1659293028608,0.56267467,23668.0,23667.0,0.70825311]
[1659293030257,0.56267467,23668.0,23667.0,0.40697611]
[1659293030706,0.56267467,23668.0,23667.0,0.70825311]
[1659293031408,0.03225,23678.0,23668.0,1.0]
[1659293031654,0.40725733,23679.0,23669.0,1.04398256]
[1659293031873,0.43949733,23680.0,23670.0,0.45725733]
[1659293032121,0.03224,23682.0,23671.0,0.40725733]
[1659293032340,0.47117533,23682.0,23671.0,0.40725733]
[1659293032553,0.031678,23682.0,23673.0,0.40725733]
[1659293032829,0.12827,23684.0,23673.0,0.40725733]
[1659293033052,0.09603,23684.0,23673.0,0.43950733]
[1659293033282,0.001,23684.0,23675.0,0.40725733]
[1659293033524,0.001,23685.0,23679.0,0.40725733]
[1659293033763,0.001,23685.0,23684.0,0.05]
[1659293034014,0.001,23685.0,23684.0,0.75853433]
[1659293036167,0.001,23686.0,23685.0,1.05]
[1659293036404,0.001,23688.0,23687.0,0.05]
[1659293036640,0.01368883,23690.0,23689.0,0.95]
[1659293036867,0.01368883,23690.0,23689.0,0.75853433]
[1659293037559,0.01368883,23690.0,23689.0,0.76720261]
[1659293038014,0.68397932,23690.0,23685.0,0.00132821]
[1659293038240,0.68397932,23690.0,23680.0,0.046]
[1659293038241,0.05,23683.0,23680.0,0.046]
[1659293038475,0.105,23681.0,23680.0,0.046]
[1659293038934,0.45725733,23681.0,23680.0,0.046]
[1659293039224,0.03467316,23681.0,23680.0,0.046]
[1659293039454,0.03467316,23681.0,23672.0,0.03225]
[1659293039686,0.08467316,23681.0,23673.0,0.49172733]
[1659293039907,0.105,23680.0,23674.0,0.53396733]
[1659293040128,0.105,23680.0,23675.0,0.70832833]
[1659293040350,0.105,23680.0,23676.0,0.301071]
[1659293040351,0.40725733,23679.0,23676.0,0.301071]
[1659293040580,0.40725733,23679.0,23676.0,0.1267]
[1659293040823,0.45725733,23679.0,23676.0,0.1267]
[1659293041040,0.50725733,23679.0,23676.0,0.1267]
[1659293041268,0.65973928,23678.0,23675.0,0.08446]
[1659293041507,0.46366828,23678.0,23675.0,0.08446]
[1659293041751,0.03467316,23677.0,23671.0,0.00132896]
[1659293041973,0.03467316,23677.0,23672.0,0.70832833]
[1659293042198,0.03467316,23677.0,23673.0,0.301071]
[1659293042425,0.03467316,23677.0,23672.0,0.40725733]
[1659293042655,0.03467316,23677.0,23676.0,0.00312256]
[1659293044079,0.33574416,23677.0,23676.0,0.00312256]
[1659293044293,0.105,23678.0,23676.0,0.00312256]
[1659293044534,0.13,23686.0,23676.0,0.41037989]
[1659293044771,0.01368883,23690.0,23679.0,0.00132855]
[1659293044772,0.06368883,23690.0,23679.0,0.00132855]
[1659293044989,0.06368883,23690.0,23680.0,0.40725733]
[1659293045227,0.06868883,23690.0,23680.0,0.40725733]
[1659293045456,0.10091883,23690.0,23680.0,0.40725733]
[1659293045776,0.01868883,23690.0,23681.0,0.301071]
[1659293046015,0.01868883,23690.0,23682.0,0.40725733]
[1659293046729,0.01368883,23690.0,23684.0,0.00132827]
[1659293046968,0.01368883,23690.0,23685.0,0.40725733]
[1659293047197,0.01368883,23690.0,23686.0,0.30100475]
[1659293047460,0.01368883,23690.0,23685.0,0.40725733]
[1659293047461,0.01368883,23690.0,23689.0,0.445]
[1659293047687,0.01368883,23690.0,23689.0,1.15333933]
[1659293047926,0.001,23692.0,23690.0,0.895]
[1659293048186,0.002,23695.0,23694.0,0.045]
[1659293048187,0.001,23695.0,23694.0,0.045]
[1659293048419,0.001,23695.0,23694.0,0.75333933]
[1659293048643,0.001,23695.0,23694.0,0.45225733]
[1659293048874,0.04434144,23695.0,23694.0,0.045]
[1659293049088,0.001,23695.0,23690.0,0.00132792]
[1659293049327,0.001,23695.0,23691.0,0.40725733]
[1659293051448,0.001,23695.0,23694.0,0.045]
[1659293051686,0.001,23695.0,23694.0,0.40725733]
[1659293051908,0.001,23695.0,23693.0,0.40725733]
[1659293052141,0.001,23695.0,23694.0,0.701082]
[1659293052390,0.001,23695.0,23694.0,0.4]
[1659293052627,0.001,23695.0,23693.0,0.40725733]
[1659293052860,0.05,23694.0,23691.0,0.40725733]
[1659293053090,0.05,23694.0,23685.0,0.2964]
[1659293053091,0.08222,23693.0,23685.0,0.2964]
[1659293053406,0.08222,23693.0,23686.0,0.40725733]
[1659293053407,0.05,23692.0,23686.0,0.40725733]
[1659293054085,0.09991444,23692.0,23686.0,0.40725733]
[1659293054315,0.35514946,23692.0,23686.0,0.40725733]
[1659293054520,0.3,23691.0,23686.0,0.40725733]
[1659293054744,0.14991444,23692.0,23686.0,0.40725733]
[1659293055217,0.04991444,23692.0,23686.0,0.40725733]
[1659293055458,0.04991444,23692.0,23687.0,0.301082]
[1659293055677,0.03222,23694.0,23688.0,0.40725733]
[1659293055678,0.04491444,23694.0,23688.0,0.40725733]
[1659293055904,0.005,23694.0,23688.0,0.40725733]
[1659293056148,0.006,23695.0,23688.0,0.40725733]
[1659293056365,0.0019208,23691.0,23689.0,0.301082]
[1659293056591,0.0019208,23691.0,23690.0,0.70833933]
[1659293056830,0.001,23695.0,23691.0,0.00192]
[1659293057065,0.002,23699.0,23694.0,0.40725733]
[1659293057301,0.002,23699.0,23697.0,0.40725733]
[1659293057520,0.002,23699.0,23698.0,0.301082]
[1659293057750,0.002,23699.0,23698.0,0.40725733]
[1659293058230,0.002,23699.0,23695.0,0.40725733]
[1659293058231,0.04491444,23698.0,23695.0,0.40725733]
[1659293058572,0.04491444,23695.0,23690.0,0.00303214]
[1659293058772,0.03222,23697.0,23691.0,0.40725733]
[1659293058773,0.3,23697.0,23691.0,0.40725733]
[1659293059005,0.301082,23696.0,23691.0,0.40725733]
[1659293059180,0.005,23696.0,23691.0,0.40725733]
[1659293059385,0.002,23699.0,23691.0,0.40725733]
[1659293059591,0.002,23699.0,23691.0,0.4085852]
[1659293059797,0.002,23699.0,23693.0,0.40725733]
[1659293059998,0.002,23699.0,23694.0,0.301082]
[1659293060206,0.002,23699.0,23695.0,0.70833933]
[1659293060398,0.002,23699.0,23696.0,0.70833933]
[1659293060609,0.002,23699.0,23698.0,0.045]
[1659293060774,0.002,23699.0,23698.0,0.75333933]
[1659293061266,6.054e-05,23701.0,23700.0,0.045]
[1659293061506,6.054e-05,23701.0,23700.0,0.45225733]
[1659293061791,6.054e-05,23701.0,23700.0,0.75333933]
[1659293061964,6.054e-05,23701.0,23700.0,0.45225733]
[1659293062541,6.054e-05,23701.0,23699.0,0.40725733]
[1659293062542,0.15006054,23701.0,23699.0,0.40725733]
[1659293062967,0.15006054,23701.0,23700.0,0.301082]
[1659293063179,6.054e-05,23701.0,23700.0,0.40725733]
[1659293063592,6.054e-05,23701.0,23700.0,0.41062446]
[1659293064753,0.001,23707.0,23700.0,0.71170646]
[1659293064957,0.001,23707.0,23701.0,0.40725733]
[1659293065212,0.05,23705.0,23701.0,0.40725733]
[1659293065458,0.04334144,23704.0,23700.0,0.41062446]
[1659293065675,0.09334144,23704.0,23700.0,0.41062446]
[1659293066365,0.03321,23707.0,23700.0,0.41062446]
[1659293066617,0.051,23707.0,23700.0,0.41062446]
[1659293066842,0.05,23705.0,23701.0,0.40725733]
[1659293067076,0.001,23707.0,23702.0,0.301082]
[1659293067297,0.001,23707.0,23700.0,0.00336713]
[1659293067298,0.001,23707.0,23703.0,0.40725733]
[1659293067522,0.04334144,23706.0,23703.0,0.40725733]
[1659293068438,0.001,23707.0,23703.0,0.40725733]
[1659293068810,0.401,23710.0,23703.0,1.60725733]
[1659293068811,0.25247727,23710.0,23703.0,1.60725733]
[1659293069023,0.25247727,23710.0,23700.0,0.00336713]
[1659293069024,0.301082,23709.0,23704.0,0.40725733]
[1659293069253,0.351082,23709.0,23704.0,0.40725733]
[1659293069377,0.301082,23708.0,23704.0,0.40725733]
[1659293069581,0.04334144,23707.0,23704.0,0.40725733]
[1659293069799,0.34442344,23707.0,23704.0,0.40725733]
[1659293070004,0.04334144,23707.0,23704.0,0.40725733]
[1659293070233,0.001,23712.0,23704.0,0.40725733]
[1659293070502,0.001,23712.0,23700.0,0.00336713]
[1659293070503,0.051,23712.0,23707.0,0.40725733]
[1659293070737,0.05,23711.0,23707.0,0.40725733]
[1659293070948,0.05,23711.0,23704.0,0.40725733]
[1659293070949,0.04334144,23710.0,23704.0,0.40725733]
[1659293071164,0.07554144,23710.0,23704.0,0.40725733]
[1659293071401,0.05,23710.0,23705.0,0.40725733]
[1659293071610,0.051,23712.0,23706.0,0.40725733]
[1659293072038,0.05,23710.0,23706.0,0.40725733]
[1659293072249,0.051,23712.0,23706.0,0.40725733]
[1659293072250,0.001,23712.0,23706.0,0.40725733]
[1659293072889,0.001,23712.0,23703.0,0.00307323]
[1659293072890,0.45825733,23712.0,23704.0,0.40725733]
[1659293073106,0.333282,23711.0,23704.0,0.40725733]
[1659293073309,0.3,23710.0,23704.0,0.40725733]
[1659293073517,0.05,23710.0,23704.0,0.40725733]
[1659293073720,0.1,23711.0,23704.0,0.40725733]
[1659293073929,0.0322,23710.0,23704.0,0.40725733]
[1659293074154,0.051,23712.0,23704.0,0.40725733]
[1659293074378,0.45825733,23712.0,23704.0,0.40725733]
[1659293074592,0.40825733,23712.0,23704.0,0.40725733]
[1659293074806,0.0322,23711.0,23704.0,0.40725733]
[1659293075020,0.05,23706.0,23703.0,0.00307323]
[1659293075234,0.05,23706.0,23695.0,0.3026]
[1659293075235,0.15,23704.0,23695.0,0.3026]
[1659293075627,0.48946733,23703.0,23696.0,0.40725733]
[1659293075848,0.3,23702.0,23696.0,0.40725733]
[1659293076071,0.2,23704.0,23697.0,0.40725733]
[1659293076344,0.1,23704.0,23697.0,0.95725733]
[1659293076561,0.45725733,23704.0,23697.0,0.40725733]
[1659293076789,0.3,23703.0,23697.0,0.40725733]
[1659293077008,0.35,23703.0,23697.0,0.40725733]
[1659293077231,0.75725733,23703.0,23694.0,0.40725733]
[1659293077451,0.45725733,23703.0,23694.0,0.40725733]
[1659293077722,0.03221,23702.0,23694.0,0.40725733]
[1659293077930,0.05,23701.0,23694.0,0.40725733]
[1659293078180,0.50725733,23701.0,23694.0,0.40725733]
[1659293078391,0.55725733,23701.0,23694.0,0.40725733]
[1659293078609,0.55725733,23701.0,23697.0,0.00262475]
[1659293078841,0.04334144,23700.0,23697.0,0.00262475]
[1659293079276,0.05,23700.0,23697.0,0.00262475]
[1659293079499,0.031646,23706.0,23697.0,0.40988208]
[1659293079717,0.40725733,23706.0,23697.0,0.40725733]
[1659293079932,0.03221,23705.0,23697.0,0.40725733]
[1659293080201,0.40725733,23704.0,23697.0,0.40725733]
[1659293081111,0.50725733,23704.0,23697.0,0.40725733]
[1659293082005,0.1,23708.0,23697.0,0.40225733]
[1659293082006,0.0322,23708.0,23697.0,0.40225733]
[1659293082234,0.40725733,23707.0,23697.0,0.40225733]
[1659293082455,0.03221,23706.0,23697.0,0.40225733]
[1659293082684,0.40725733,23706.0,23697.0,0.40225733]
[1659293083133,0.40725733,23706.0,23697.0,0.40521384]
[1659293083358,0.40725733,23706.0,23698.0,0.40725733]
[1659293084160,0.03221,23705.0,23698.0,0.40725733]
[1659293084258,0.33221,23705.0,23698.0,0.40725733]
[1659293084484,0.45725733,23706.0,23698.0,0.40725733]
[1659293084712,0.40725733,23706.0,23698.0,0.40725733]
[1659293084955,0.43946733,23706.0,23698.0,0.40725733]
[1659293085188,0.031644,23707.0,23698.0,0.40725733]
[1659293085415,0.05,23705.0,23699.0,0.40725733]
[1659293085659,0.05,23707.0,23701.0,0.40725733]
[1659293085900,0.001,23712.0,23701.0,0.40725733]
[1659293086128,0.302082,23712.0,23701.0,0.40725733]
[1659293086568,0.47109733,23711.0,23701.0,0.40725733]
[1659293086793,0.70833933,23710.0,23701.0,0.40725733]
[1659293087020,0.74053933,23709.0,23701.0,0.40725733]
[1659293087239,0.70833933,23708.0,23701.0,0.40725733]
[1659293087463,0.0322,23709.0,23701.0,0.39673733]
[1659293087464,0.351082,23707.0,23701.0,0.39673733]
[1659293087710,0.05,23708.0,23701.0,0.39673733]
[1659293087974,0.80833933,23708.0,23701.0,0.39673733]
[1659293088203,0.633292,23707.0,23701.0,0.39673733]
[1659293088437,0.633292,23707.0,23698.0,0.59185885]
[1659293088438,0.0322,23708.0,23703.0,0.40725733]
[1659293088672,1.004846,23714.0,23703.0,0.40725733]
[1659293088673,0.001,23712.0,23703.0,0.40725733]
[1659293089407,0.0332,23712.0,23703.0,0.40725733]
[1659293089912,0.334282,23712.0,23703.0,0.40725733]
[1659293090132,0.302082,23712.0,23703.0,0.40725733]
[1659293090599,0.0322,23711.0,23703.0,0.40725733]
[1659293090841,0.347082,23712.0,23703.0,0.40725733]
[1659293091074,0.347082,23712.0,23703.0,0.40990384]
[1659293091293,0.347082,23712.0,23704.0,0.40725733]
[1659293091801,0.379282,23712.0,23704.0,0.40725733]
[1659293092231,0.347082,23712.0,23704.0,0.40725733]
[1659293092462,0.0322,23711.0,23704.0,0.40725733]
[1659293092696,0.347082,23712.0,23704.0,0.40725733]
[1659293093831,0.3,23711.0,23704.0,0.40725733]
[1659293094060,0.301082,23710.0,23704.0,0.40725733]
[1659293094309,0.347572,23709.0,23704.0,0.40725733]
[1659293094524,0.05,23709.0,23704.0,0.40725733]
[1659293094761,0.297714,23709.0,23704.0,0.40725733]
[1659293094984,0.05,23709.0,23704.0,0.40725733]
[1659293095218,0.297714,23709.0,23704.0,0.40725733]
[1659293095455,0.031639,23711.0,23704.0,0.40725733]
[1659293095703,0.329353,23711.0,23704.0,0.40725733]
[1659293095926,0.031639,23711.0,23704.0,0.40725733]
[1659293096156,0.379353,23711.0,23704.0,0.40725733]
[1659293096389,0.05,23709.0,23703.0,0.00264651]
[1659293096603,0.73717133,23708.0,23703.0,0.00264651]
[1659293096863,0.35094,23707.0,23703.0,0.00264651]
[1659293097092,0.04334144,23706.0,23698.0,0.5892]
[1659293097311,0.04334144,23706.0,23699.0,0.40725733]
[1659293097786,0.14334144,23706.0,23699.0,0.40725733]
[1659293098922,0.03221,23705.0,23699.0,0.40725733]
[1659293099164,0.43890333,23705.0,23696.0,0.40725733]
[1659293099511,0.1,23700.0,23693.0,0.40725733]
[1659293099840,0.03222,23699.0,23693.0,0.40725733]
[1659293100083,0.3,23699.0,23693.0,0.40725733]
[1659293100296,0.15,23700.0,23693.0,0.40725733]
[1659293100774,0.05,23700.0,23693.0,0.40725733]
[1659293101018,0.40725733,23699.0,23692.0,0.40725733]
[1659293101244,0.05,23697.0,23692.0,0.40725733]
[1659293101486,0.1,23697.0,23692.0,0.40725733]
[1659293101707,0.05,23697.0,23692.0,0.40725733]
[1659293101939,0.1,23697.0,23692.0,0.40725733]
[1659293102647,0.1,23695.0,23685.0,1.5576]
[1659293102878,0.15,23695.0,23686.0,0.40725733]
[1659293103111,0.05,23695.0,23686.0,0.40725733]
[1659293103396,0.1,23697.0,23687.0,0.40725733]
[1659293103630,0.05,23697.0,23688.0,0.40725733]
[1659293103860,0.1,23697.0,23688.0,0.40725733]
[1659293104555,0.1,23697.0,23689.0,0.40725733]
[1659293104556,0.05,23697.0,23689.0,0.40725733]
[1659293104784,0.05,23697.0,23695.0,0.40725733]
[1659293105009,0.0322,23708.0,23696.0,0.70819733]
[1659293105281,0.5166,23713.0,23699.0,0.40725733]
[1659293105282,0.0322,23710.0,23699.0,0.40725733]
[1659293105507,0.0322,23712.0,23702.0,0.40725733]
[1659293105722,0.74039733,23712.0,23702.0,0.40725733]
[1659293105946,0.74039733,23712.0,23699.0,0.40725733]
[1659293105947,0.05,23707.0,23699.0,0.40725733]
[1659293106175,0.33315,23706.0,23699.0,0.40725733]
[1659293106392,0.297714,23705.0,23699.0,0.40725733]
[1659293106610,0.03221,23706.0,23699.0,0.40725733]
[1659293106829,0.33315,23706.0,23699.0,0.40725733]
[1659293107342,0.3,23705.0,23699.0,0.40725733]
[1659293107578,0.347714,23704.0,23699.0,0.40725733]
[1659293107808,0.3,23703.0,23699.0,0.40725733]
[1659293108044,0.34428144,23702.0,23699.0,0.40725733]
[1659293108259,0.297714,23701.0,23699.0,0.40725733]
[1659293108499,0.05,23701.0,23699.0,0.40725733]
[1659293108719,0.14334144,23702.0,23699.0,0.40725733]
[1659293108940,0.30094,23701.0,23699.0,0.40725733]
[1659293109192,0.05,23701.0,23699.0,0.40725733]
[1659293109436,0.13834144,23702.0,23699.0,0.40725733]
[1659293109669,0.03221,23706.0,23699.0,0.40725733]
[1659293109953,0.175647,23710.0,23696.0,0.40725733]
[1659293109954,0.40725733,23705.0,23696.0,0.40725733]
[1659293110201,0.25158195,23696.0,23694.0,0.068]
[1659293110435,0.25158195,23696.0,23695.0,0.70819733]
[1659293110655,0.30094,23695.0,23687.0,0.654]
[1659293110869,0.05,23692.0,23687.0,0.40725733]
[1659293111093,0.15,23688.0,23687.0,0.40725733]
[1659293111321,0.4,23693.0,23687.0,0.40725733]
[1659293111535,0.4,23693.0,23682.0,0.40725733]
[1659293111536,0.74051633,23692.0,23682.0,0.40725733]
[1659293111760,0.40725733,23691.0,23682.0,0.40725733]
[1659293112000,0.1,23691.0,23682.0,0.40725733]
[1659293112225,0.4,23691.0,23682.0,0.40725733]
[1659293112474,0.05,23689.0,23682.0,0.40725733]
[1659293112708,1.06966969,23688.0,23679.0,0.047]
[1659293112931,0.70725733,23687.0,23680.0,0.40725733]
[1659293113159,0.45725733,23687.0,23680.0,0.40725733]
[1659293113391,0.05,23685.0,23679.0,0.002]
[1659293113632,0.75,23680.0,23679.0,0.002]
[1659293113850,0.94437044,23680.0,23679.0,0.002]
[1659293114070,0.301029,23680.0,23679.0,0.002]
[1659293114303,0.05,23683.0,23679.0,0.002]
[1659293114541,0.301029,23682.0,23679.0,0.002]
[1659293114755,0.351029,23682.0,23679.0,0.40925733]
[1659293115060,0.45213,23689.0,23680.0,0.40725733]
[1659293115061,0.4199,23689.0,23680.0,0.40725733]
[1659293115311,0.70828633,23688.0,23680.0,0.40725733]
[1659293115538,0.03223,23691.0,23680.0,0.40725733]
[1659293115539,0.70828633,23687.0,23680.0,0.40725733]
[1659293115765,0.301029,23686.0,23680.0,0.40725733]
[1659293116005,0.301029,23685.0,23680.0,0.40725733]
[1659293116223,0.40725733,23687.0,23680.0,0.40725733]
[1659293117182,0.05,23681.0,23679.0,0.002]
[1659293117406,0.74051633,23686.0,23679.0,0.002]
[1659293117407,0.5,23680.0,23679.0,0.002]
[1659293117634,0.751029,23680.0,23679.0,0.002]
[1659293117855,0.05,23681.0,23679.0,0.002]
[1659293118072,0.45725733,23685.0,23679.0,0.002]
[1659293118305,0.8,23680.0,23679.0,0.002]
[1659293118529,0.34437044,23680.0,23679.0,0.002]
[1659293118755,0.1,23685.0,23679.0,0.002]
[1659293118977,0.351029,23685.0,23679.0,0.40925733]
[1659293119203,0.05,23685.0,23679.0,0.40925733]
[1659293119421,0.301029,23685.0,23679.0,0.40925733]
[1659293119653,0.05,23686.0,23679.0,0.40925733]
[1659293120378,0.35,23686.0,23679.0,0.40925733]
[1659293120599,0.301029,23685.0,23679.0,0.40925733]
[1659293120836,0.351029,23685.0,23679.0,0.40925733]
[1659293121059,0.05,23683.0,23679.0,0.002]
[1659293121294,0.8,23680.0,23679.0,0.002]
[1659293121536,0.301029,23680.0,23679.0,0.002]
[1659293121792,0.34437044,23682.0,23679.0,0.002]
[1659293122022,0.1,23680.0,23679.0,0.002]
[1659293122245,0.1,23680.0,23677.0,0.00369722]
[1659293122246,0.15,23678.0,23677.0,0.00369722]
[1659293122466,0.501029,23678.0,23677.0,0.00369722]
[1659293123118,0.90828633,23678.0,23677.0,0.00369722]
[1659293123340,0.833279,23678.0,23677.0,0.00369722]
[1659293123571,0.4507536,23678.0,23677.0,0.00369722]
[1659293124019,0.85801093,23678.0,23677.0,0.00369722]
[1659293124259,1.20801093,23678.0,23677.0,0.00259722]
[1659293124491,1.30801093,23678.0,23677.0,0.00259722]
[1659293124749,1.31167921,23678.0,23677.0,0.00259722]
[1659293124985,1.34392921,23678.0,23677.0,0.00259722]
[1659293125209,1.31167921,23678.0,23677.0,0.00259722]